[Event "*** Titled Tuesday Blitz"]
[Site "Chess.com"]
[Date "2021.03.02"]
[Round "9"]
[White "akanga001"]
[Black "Fraler15"]
[Result "0-1"]
[WhiteElo "1972"]
[BlackElo "2274"]
[TimeControl "180+1"]
[EndTime "11:47:29 PST"]
[Termination "Fraler15 won on time"]

1. d4 {[%clk 0:03:00.9]} 1... Nf6 {[%clk 0:02:59.8]} 2. Nf3 {[%clk 0:03:00]}
2... e6 {[%clk 0:02:58.5]} 3. Bg5 {[%clk 0:02:59.1]} 3... d5 {[%clk 0:02:58.3]}
4. e3 {[%clk 0:02:58.6]} 4... Be7 {[%clk 0:02:55.5]} 5. Nbd2 {[%clk 0:02:57.5]}
5... O-O {[%clk 0:02:55.4]} 6. Bd3 {[%clk 0:02:56.7]} 6... c5 {[%clk 0:02:54.9]}
7. c3 {[%clk 0:02:56.1]} 7... Nc6 {[%clk 0:02:54.3]} 8. O-O {[%clk 0:02:55.2]}
8... b6 {[%clk 0:02:54.2]} 9. a4 {[%clk 0:02:54.3]} 9... Bb7 {[%clk 0:02:53]}
10. Re1 {[%clk 0:02:52]} 10... h6 {[%clk 0:02:52.5]} 11. Bh4 {[%clk 0:02:51.3]}
11... Rc8 {[%clk 0:02:44.8]} 12. Bf1 {[%clk 0:02:35]} 12... Ne4 {[%clk
0:02:40.4]} 13. Bxe7 {[%clk 0:02:33.3]} 13... Qxe7 {[%clk 0:02:41.3]} 14. Qb1
{[%clk 0:02:10.1]} 14... Nb8 {[%clk 0:02:20.7]} 15. a5 {[%clk 0:02:07]} 15...
Nd7 {[%clk 0:02:16.1]} 16. a6 {[%clk 0:02:05.3]} 16... Bc6 {[%clk 0:02:12.7]}
17. Bd3 {[%clk 0:01:58.6]} 17... Ndf6 {[%clk 0:02:12]} 18. Ne5 {[%clk
0:01:57.1]} 18... Ba8 {[%clk 0:02:10.6]} 19. Qc2 {[%clk 0:01:36.2]} 19... Nxd2
{[%clk 0:01:45.8]} 20. Qxd2 {[%clk 0:01:34.8]} 20... Nd7 {[%clk 0:01:46.4]} 21.
f4 {[%clk 0:01:31]} 21... Rfe8 {[%clk 0:01:31.6]} 22. Bb5 {[%clk 0:01:27.8]}
22... Nxe5 {[%clk 0:01:27.8]} 23. Bxe8 {[%clk 0:01:24.3]} 23... Nc4 {[%clk
0:01:27.6]} 24. Bxf7+ {[%clk 0:01:17.8]} 24... Qxf7 {[%clk 0:01:28.5]} 25. Qe2
{[%clk 0:01:14.2]} 25... Nd6 {[%clk 0:01:25.4]} 26. dxc5 {[%clk 0:01:09.9]}
26... bxc5 {[%clk 0:01:23.7]} 27. b4 {[%clk 0:01:06.4]} 27... Ne4 {[%clk
0:01:16.9]} 28. Rec1 {[%clk 0:01:03.4]} 28... Qf6 {[%clk 0:00:49.5]} 29. Qd3
{[%clk 0:00:31.9]} 29... Bc6 {[%clk 0:00:30.5]} 30. b5 {[%clk 0:00:30.1]} 30...
Bd7 {[%clk 0:00:24.9]} 31. b6 {[%clk 0:00:27.2]} 31... axb6 {[%clk 0:00:23.7]}
32. a7 {[%clk 0:00:26.5]} 32... Ra8 {[%clk 0:00:24.2]} 33. Qa6 {[%clk
0:00:22.8]} 33... Qf8 {[%clk 0:00:16.3]} 34. Qxb6 {[%clk 0:00:18.9]} 34... Qc8
{[%clk 0:00:16.6]} 35. f5 {[%clk 0:00:11.7]} 35... exf5 {[%clk 0:00:12.6]} 36.
Rcb1 {[%clk 0:00:09.5]} 36... Kh7 {[%clk 0:00:12.3]} 37. Qb8 {[%clk 0:00:04.3]}
37... Qc6 {[%clk 0:00:12.2]} 0-1

[Event "*** Titled Tuesday Blitz"]
[Site "Chess.com"]
[Date "2021.03.02"]
[Round "9"]
[White "DenLaz"]
[Black "Konavets"]
[Result "1-0"]
[WhiteElo "2860"]
[BlackElo "2939"]
[TimeControl "180+1"]
[EndTime "11:47:30 PST"]
[Termination "DenLaz won by resignation"]

1. d4 {[%clk 0:03:00.3]} 1... Nf6 {[%clk 0:02:59.1]} 2. c4 {[%clk 0:03:00.4]}
2... d6 {[%clk 0:02:59.8]} 3. Nf3 {[%clk 0:03:00.8]} 3... g6 {[%clk 0:02:59.4]}
4. g3 {[%clk 0:02:57.5]} 4... Bg7 {[%clk 0:02:58.7]} 5. Bg2 {[%clk 0:02:57.6]}
5... O-O {[%clk 0:02:58.9]} 6. Nc3 {[%clk 0:02:58.3]} 6... Nbd7 {[%clk
0:02:59.3]} 7. O-O {[%clk 0:02:58.3]} 7... e5 {[%clk 0:03:00]} 8. e4 {[%clk
0:02:58.9]} 8... exd4 {[%clk 0:02:59.3]} 9. Nxd4 {[%clk 0:02:59.8]} 9... Re8
{[%clk 0:02:59.9]} 10. h3 {[%clk 0:02:59.5]} 10... a6 {[%clk 0:03:00.1]} 11. Be3
{[%clk 0:02:58.9]} 11... Rb8 {[%clk 0:02:56.7]} 12. b3 {[%clk 0:02:58.5]} 12...
Nc5 {[%clk 0:02:53]} 13. Qc2 {[%clk 0:02:56.9]} 13... Bd7 {[%clk 0:02:53.2]} 14.
a4 {[%clk 0:02:49.3]} 14... Qc8 {[%clk 0:02:51.9]} 15. Kh2 {[%clk 0:02:46.6]}
15... Re5 {[%clk 0:02:43.9]} 16. f3 {[%clk 0:02:25]} 16... Rh5 {[%clk
0:02:34.5]} 17. h4 {[%clk 0:02:23.6]} 17... h6 {[%clk 0:02:17.1]} 18. Kg1 {[%clk
0:02:13.4]} 18... g5 {[%clk 0:02:15.4]} 19. b4 {[%clk 0:02:09.6]} 19... Ne6
{[%clk 0:01:58.2]} 20. Nf5 {[%clk 0:02:08.9]} 20... Bf8 {[%clk 0:01:58.4]} 21.
hxg5 {[%clk 0:01:45.4]} 21... hxg5 {[%clk 0:01:55]} 22. g4 {[%clk 0:01:44.1]}
22... Rh7 {[%clk 0:01:53.5]} 23. Qd2 {[%clk 0:01:39]} 23... Qd8 {[%clk
0:01:36.5]} 24. Bxg5 {[%clk 0:01:30.8]} 24... Nxg5 {[%clk 0:01:32.1]} 25. Qxg5+
{[%clk 0:01:31.7]} 25... Kh8 {[%clk 0:01:32.2]} 26. Qf4 {[%clk 0:01:26.7]} 26...
d5 {[%clk 0:01:20.5]} 27. Nxd5 {[%clk 0:00:53.3]} 27... Nxd5 {[%clk 0:01:17.9]}
28. exd5 {[%clk 0:00:54.2]} 28... Bxb4 {[%clk 0:01:09.9]} 29. Qd4+ {[%clk
0:00:53.2]} 29... f6 {[%clk 0:01:07.5]} 30. c5 {[%clk 0:00:53.2]} 30... a5
{[%clk 0:01:07.3]} 31. Ng3 {[%clk 0:00:45.4]} 31... Qf8 {[%clk 0:00:54.9]} 32.
Ne4 {[%clk 0:00:44.5]} 32... Re8 {[%clk 0:00:54.5]} 33. Rac1 {[%clk 0:00:41]}
33... Re5 {[%clk 0:00:17.6]} 34. f4 {[%clk 0:00:38.3]} 34... Rxe4 {[%clk
0:00:17.7]} 35. Bxe4 {[%clk 0:00:37.9]} 35... Rh4 {[%clk 0:00:17.9]} 36. Rf2
{[%clk 0:00:26.2]} 36... Rxg4+ {[%clk 0:00:13.2]} 37. Rg2 {[%clk 0:00:21.5]}
37... Rh4 {[%clk 0:00:11.8]} 38. d6 {[%clk 0:00:11.6]} 38... cxd6 {[%clk
0:00:07.8]} 39. Qxd6 {[%clk 0:00:10.4]} 39... Qh6 {[%clk 0:00:05.1]} 40. Qb8+
{[%clk 0:00:07.3]} 1-0

[Event "*** Titled Tuesday Blitz"]
[Site "Chess.com"]
[Date "2021.03.02"]
[Round "9"]
[White "Sergey85Rodchenkov"]
[Black "anon102030"]
[Result "1/2-1/2"]
[WhiteElo "2502"]
[BlackElo "2699"]
[TimeControl "180+1"]
[EndTime "11:47:32 PST"]
[Termination "Game drawn by repetition"]

1. e4 {[%clk 0:03:00.9]} 1... e5 {[%clk 0:02:59.7]} 2. Nf3 {[%clk 0:03:00.8]}
2... Nc6 {[%clk 0:02:59.8]} 3. Bc4 {[%clk 0:03:00.7]} 3... Bc5 {[%clk 0:02:59]}
4. d3 {[%clk 0:03:00.4]} 4... Nf6 {[%clk 0:02:58.9]} 5. O-O {[%clk 0:03:00.5]}
5... d6 {[%clk 0:02:57.5]} 6. c3 {[%clk 0:03:00.2]} 6... Bb6 {[%clk 0:02:56.8]}
7. Re1 {[%clk 0:02:58.4]} 7... Be6 {[%clk 0:02:53.3]} 8. Bb3 {[%clk 0:02:57.9]}
8... O-O {[%clk 0:02:50.9]} 9. Nbd2 {[%clk 0:02:57.4]} 9... Re8 {[%clk
0:02:47.6]} 10. Nc4 {[%clk 0:02:55.9]} 10... Na5 {[%clk 0:02:42.4]} 11. Nxa5
{[%clk 0:02:53.2]} 11... Bxa5 {[%clk 0:02:43.3]} 12. Bg5 {[%clk 0:02:53.2]}
12... h6 {[%clk 0:02:42.3]} 13. Bh4 {[%clk 0:02:52.8]} 13... Bb6 {[%clk
0:02:34.2]} 14. d4 {[%clk 0:02:43.3]} 14... Bxb3 {[%clk 0:02:29.8]} 15. axb3
{[%clk 0:02:42.7]} 15... g5 {[%clk 0:02:28]} 16. Bg3 {[%clk 0:02:40.5]} 16...
exd4 {[%clk 0:02:28]} 17. Nxd4 {[%clk 0:02:40.8]} 17... Nxe4 {[%clk 0:02:28.2]}
18. Qf3 {[%clk 0:02:09.8]} 18... Nxg3 {[%clk 0:02:12]} 19. hxg3 {[%clk
0:02:09.4]} 19... Bxd4 {[%clk 0:02:11.8]} 20. cxd4 {[%clk 0:02:09]} 20... c6
{[%clk 0:02:09.7]} 21. d5 {[%clk 0:01:56.7]} 21... c5 {[%clk 0:02:07.5]} 22. g4
{[%clk 0:01:36.5]} 22... Rxe1+ {[%clk 0:01:53.9]} 23. Rxe1 {[%clk 0:01:35.5]}
23... Kg7 {[%clk 0:01:54.8]} 24. Qf5 {[%clk 0:01:34.3]} 24... Qf6 {[%clk
0:01:45.8]} 25. Qd7 {[%clk 0:01:33.9]} 25... Rd8 {[%clk 0:01:41]} 26. Qxb7
{[%clk 0:01:30.6]} 26... Qxb2 {[%clk 0:01:38.2]} 27. Re7 {[%clk 0:01:30.4]}
27... Rf8 {[%clk 0:01:28.3]} 28. g3 {[%clk 0:01:29.1]} 28... a5 {[%clk
0:01:15.1]} 29. Rd7 {[%clk 0:01:28]} 29... Qb1+ {[%clk 0:01:00.9]} 30. Kh2
{[%clk 0:01:23]} 30... Qc2 {[%clk 0:00:51.5]} 31. Kg1 {[%clk 0:01:21.2]} 31...
Qd1+ {[%clk 0:00:41.4]} 32. Kg2 {[%clk 0:01:19.4]} 32... Qxg4 {[%clk 0:00:30.3]}
33. Rxd6 {[%clk 0:01:18.8]} 33... h5 {[%clk 0:00:25.4]} 34. Qe7 {[%clk 0:01:14]}
34... h4 {[%clk 0:00:19]} 35. Qf6+ {[%clk 0:00:59.5]} 35... Kg8 {[%clk
0:00:19.1]} 36. Rd8 {[%clk 0:00:30.3]} 36... hxg3 {[%clk 0:00:14]} 37. fxg3
{[%clk 0:00:24.5]} 37... Qe2+ {[%clk 0:00:12.7]} 38. Kh3 {[%clk 0:00:23.1]}
38... Qh5+ {[%clk 0:00:10.5]} 39. Kg2 {[%clk 0:00:22.7]} 39... Rxd8 {[%clk
0:00:09.7]} 40. Qxd8+ {[%clk 0:00:22]} 40... Kg7 {[%clk 0:00:10.6]} 41. d6
{[%clk 0:00:20.5]} 41... Qe2+ {[%clk 0:00:09.8]} 42. Kh3 {[%clk 0:00:20.4]}
42... Qf1+ {[%clk 0:00:02.4]} 43. Kh2 {[%clk 0:00:20.3]} 43... Qf2+ {[%clk
0:00:02.5]} 44. Kh3 {[%clk 0:00:20.4]} 44... Qf1+ {[%clk 0:00:03.4]} 45. Kh2
{[%clk 0:00:20.7]} 45... Qe2+ {[%clk 0:00:03.8]} 46. Kh3 {[%clk 0:00:20.8]}
46... Qh5+ {[%clk 0:00:04.6]} 47. Kg2 {[%clk 0:00:20.8]} 47... Qe2+ {[%clk
0:00:04.3]} 48. Kh3 {[%clk 0:00:21]} 1/2-1/2

[Event "*** Titled Tuesday Blitz"]
[Site "Chess.com"]
[Date "2021.03.02"]
[Round "9"]
[White "zurzan"]
[Black "Alniro4"]
[Result "0-1"]
[WhiteElo "2049"]
[BlackElo "2254"]
[TimeControl "180+1"]
[EndTime "11:47:32 PST"]
[Termination "Alniro4 won by resignation"]

1. f4 {[%clk 0:03:00.9]} 1... c5 {[%clk 0:02:58.1]} 2. Nf3 {[%clk 0:03:00.8]}
2... Nf6 {[%clk 0:02:56.5]} 3. g3 {[%clk 0:03:01.3]} 3... b6 {[%clk 0:02:55.4]}
4. Bg2 {[%clk 0:03:01.5]} 4... Bb7 {[%clk 0:02:55.2]} 5. O-O {[%clk 0:03:02.4]}
5... e6 {[%clk 0:02:54.5]} 6. d3 {[%clk 0:03:02.8]} 6... d5 {[%clk 0:02:52.3]}
7. c3 {[%clk 0:03:02.6]} 7... Nbd7 {[%clk 0:02:51]} 8. a4 {[%clk 0:03:02.5]}
8... Bd6 {[%clk 0:02:49]} 9. Na3 {[%clk 0:03:01.5]} 9... O-O {[%clk 0:02:46.6]}
10. Nb5 {[%clk 0:03:00.9]} 10... Bb8 {[%clk 0:02:45.5]} 11. b4 {[%clk
0:02:54.3]} 11... a6 {[%clk 0:02:33.3]} 12. Na3 {[%clk 0:02:53.1]} 12... e5
{[%clk 0:02:22.9]} 13. bxc5 {[%clk 0:02:52.8]} 13... bxc5 {[%clk 0:02:20.1]} 14.
e3 {[%clk 0:02:47.4]} 14... Bc6 {[%clk 0:02:13]} 15. c4 {[%clk 0:02:20.9]} 15...
e4 {[%clk 0:02:08]} 16. dxe4 {[%clk 0:02:18.2]} 16... Nxe4 {[%clk 0:01:54.3]}
17. cxd5 {[%clk 0:02:13.1]} 17... Nc3 {[%clk 0:01:52.6]} 18. Qc2 {[%clk
0:02:06.4]} 18... Nxd5 {[%clk 0:01:49.2]} 19. Bb2 {[%clk 0:01:56.3]} 19... Nb4
{[%clk 0:01:25.6]} 20. Qc3 {[%clk 0:01:54.6]} 20... Nf6 {[%clk 0:01:18.9]} 21.
Qxc5 {[%clk 0:01:35.3]} 21... Bd6 {[%clk 0:00:59.1]} 22. Qf5 {[%clk 0:01:24.1]}
22... Be4 {[%clk 0:00:49]} 23. Bxf6 {[%clk 0:01:01.2]} 23... Bxf5 {[%clk
0:00:46.3]} 24. Bxd8 {[%clk 0:01:02.1]} 24... Rfxd8 {[%clk 0:00:45.5]} 25. Nd4
{[%clk 0:01:00.4]} 25... Bd3 {[%clk 0:00:40.8]} 26. Rfd1 {[%clk 0:00:57.8]}
26... Rac8 {[%clk 0:00:37.5]} 27. Rac1 {[%clk 0:00:45.7]} 27... Bc5 {[%clk
0:00:33.1]} 28. Nb3 {[%clk 0:00:27.8]} 28... Bxe3+ {[%clk 0:00:31]} 29. Kh1
{[%clk 0:00:27.7]} 29... Bxc1 {[%clk 0:00:30.4]} 30. Rxc1 {[%clk 0:00:28.6]}
30... Rxc1+ {[%clk 0:00:29.3]} 31. Nxc1 {[%clk 0:00:29.5]} 31... Bc2 {[%clk
0:00:24.8]} 32. Nxc2 {[%clk 0:00:28.3]} 32... Rd1+ {[%clk 0:00:23.9]} 33. Bf1
{[%clk 0:00:23.8]} 33... Rxf1+ {[%clk 0:00:23.8]} 34. Kg2 {[%clk 0:00:24.7]}
34... Rxc1 {[%clk 0:00:23]} 35. Nxb4 {[%clk 0:00:24.9]} 35... a5 {[%clk
0:00:22.9]} 36. Nd5 {[%clk 0:00:23.5]} 36... Rc4 {[%clk 0:00:20.8]} 37. Ne7+
{[%clk 0:00:23.9]} 37... Kf8 {[%clk 0:00:20.2]} 38. Nd5 {[%clk 0:00:23.1]} 38...
Rxa4 {[%clk 0:00:19.9]} 39. Nb6 {[%clk 0:00:23.6]} 39... Rb4 {[%clk 0:00:18.9]}
40. Nd5 {[%clk 0:00:24.5]} 40... Rd4 {[%clk 0:00:18.3]} 41. Nb6 {[%clk
0:00:24.2]} 41... a4 {[%clk 0:00:17.7]} 42. Kf2 {[%clk 0:00:25.1]} 42... a3
{[%clk 0:00:17.5]} 43. Ke3 {[%clk 0:00:26]} 43... Rb4 {[%clk 0:00:15.5]} 44. Nd5
{[%clk 0:00:25.2]} 44... Rb3+ {[%clk 0:00:14.8]} 45. Kd2 {[%clk 0:00:26]} 45...
a2 {[%clk 0:00:14.8]} 46. Kc2 {[%clk 0:00:24.1]} 46... Rb5 {[%clk 0:00:14.6]}
47. Nc3 {[%clk 0:00:23.6]} 47... Rc5 {[%clk 0:00:14.3]} 48. Kb2 {[%clk 0:00:23]}
48... Rxc3 {[%clk 0:00:14.4]} 49. Kxa2 {[%clk 0:00:23.5]} 49... Rc2+ {[%clk
0:00:14.4]} 0-1

[Event "*** Titled Tuesday Blitz"]
[Site "Chess.com"]
[Date "2021.03.02"]
[Round "9"]
[White "publicaccountcze"]
[Black "beto-betun"]
[Result "0-1"]
[WhiteElo "2193"]
[BlackElo "2211"]
[TimeControl "180+1"]
[EndTime "11:47:34 PST"]
[Termination "beto-betun won on time"]

1. d4 {[%clk 0:03:00.9]} 1... Nf6 {[%clk 0:02:59.3]} 2. c4 {[%clk 0:03:01.4]}
2... g6 {[%clk 0:02:59.4]} 3. Nc3 {[%clk 0:03:01.8]} 3... Bg7 {[%clk 0:02:59.6]}
4. e4 {[%clk 0:03:01.9]} 4... d6 {[%clk 0:02:59.7]} 5. Bd3 {[%clk 0:03:02.5]}
5... e5 {[%clk 0:02:54.8]} 6. d5 {[%clk 0:03:00.3]} 6... O-O {[%clk 0:02:54.5]}
7. Nge2 {[%clk 0:03:00.5]} 7... c6 {[%clk 0:02:50.8]} 8. O-O {[%clk 0:03:00.8]}
8... c5 {[%clk 0:02:40.3]} 9. Bg5 {[%clk 0:02:52.8]} 9... a6 {[%clk 0:02:29.8]}
10. Qd2 {[%clk 0:02:49.8]} 10... Nbd7 {[%clk 0:02:09.1]} 11. a3 {[%clk
0:02:45.7]} 11... Qc7 {[%clk 0:02:06.6]} 12. a4 {[%clk 0:02:43.5]} 12... b6
{[%clk 0:02:05]} 13. Rfb1 {[%clk 0:02:36.5]} 13... Bb7 {[%clk 0:01:58.4]} 14. b3
{[%clk 0:02:29]} 14... Rfe8 {[%clk 0:01:49.4]} 15. a5 {[%clk 0:02:21.9]} 15...
bxa5 {[%clk 0:01:47.1]} 16. Nd1 {[%clk 0:02:11.7]} 16... h5 {[%clk 0:01:42.4]}
17. Qxa5 {[%clk 0:02:10.5]} 17... Qxa5 {[%clk 0:01:40.4]} 18. Rxa5 {[%clk
0:02:09.5]} 18... Kh7 {[%clk 0:01:39.8]} 19. Nec3 {[%clk 0:02:06.1]} 19... Reb8
{[%clk 0:01:34]} 20. b4 {[%clk 0:02:05.8]} 20... cxb4 {[%clk 0:01:31.7]} 21.
Rxb4 {[%clk 0:02:03.6]} 21... Nc5 {[%clk 0:01:32]} 22. Bc2 {[%clk 0:01:55.2]}
22... Bc8 {[%clk 0:01:32.3]} 23. Rxb8 {[%clk 0:01:48.4]} 23... Rxb8 {[%clk
0:01:33.2]} 24. Ra1 {[%clk 0:01:33.2]} 24... Rb4 {[%clk 0:01:29.7]} 25. Ne3
{[%clk 0:01:26.2]} 25... Ne8 {[%clk 0:01:18.3]} 26. Bd8 {[%clk 0:01:17.8]} 26...
Bd7 {[%clk 0:01:17.4]} 27. Ba5 {[%clk 0:01:16.8]} 27... Rb7 {[%clk 0:01:15.2]}
28. Rb1 {[%clk 0:01:06.8]} 28... Rxb1+ {[%clk 0:01:11.1]} 29. Bxb1 {[%clk
0:01:06.5]} 29... Bh6 {[%clk 0:01:08.7]} 30. Bb4 {[%clk 0:01:02.8]} 30... Nc7
{[%clk 0:01:03.6]} 31. Bc2 {[%clk 0:00:58.7]} 31... Nb7 {[%clk 0:01:01.2]} 32.
Na4 {[%clk 0:00:54.9]} 32... Bxe3 {[%clk 0:00:57.4]} 33. fxe3 {[%clk 0:00:53.3]}
33... Bxa4 {[%clk 0:00:55.5]} 34. Bxa4 {[%clk 0:00:51.6]} 34... a5 {[%clk
0:00:56]} 35. Ba3 {[%clk 0:00:50.3]} 35... Na6 {[%clk 0:00:54.2]} 36. Bc6 {[%clk
0:00:41.8]} 36... Nbc5 {[%clk 0:00:51.4]} 37. Bb5 {[%clk 0:00:35.3]} 37... Nb4
{[%clk 0:00:49.6]} 38. Kf2 {[%clk 0:00:19.2]} 38... Kg7 {[%clk 0:00:43.7]} 39.
Kf3 {[%clk 0:00:18.7]} 39... g5 {[%clk 0:00:44.2]} 40. g3 {[%clk 0:00:17.6]}
40... g4+ {[%clk 0:00:42.6]} 41. Ke2 {[%clk 0:00:16]} 41... Nxe4 {[%clk
0:00:42]} 42. Bd7 {[%clk 0:00:12.6]} 42... Nc5 {[%clk 0:00:38.8]} 43. Bb5 {[%clk
0:00:09.6]} 43... f5 {[%clk 0:00:35.6]} 44. Kd2 {[%clk 0:00:09.3]} 44... Kf6
{[%clk 0:00:35.6]} 45. Kc3 {[%clk 0:00:08.1]} 45... Ne4+ {[%clk 0:00:34]} 46.
Kb3 {[%clk 0:00:04.2]} 46... f4 {[%clk 0:00:30.1]} 47. exf4 {[%clk 0:00:02.9]}
47... exf4 {[%clk 0:00:31]} 48. gxf4 {[%clk 0:00:02.6]} 48... h4 {[%clk
0:00:30.3]} 49. c5 {[%clk 0:00:01.5]} 49... Nxc5+ {[%clk 0:00:29]} 0-1

[Event "*** Titled Tuesday Blitz"]
[Site "Chess.com"]
[Date "2021.03.02"]
[Round "9"]
[White "Oligan22"]
[Black "UmutErdemGunduz"]
[Result "1-0"]
[WhiteElo "2518"]
[BlackElo "2354"]
[TimeControl "180+1"]
[EndTime "11:47:35 PST"]
[Termination "Oligan22 won by resignation"]

1. e4 {[%clk 0:03:00.9]} 1... e5 {[%clk 0:02:59.8]} 2. Nf3 {[%clk 0:03:00.7]}
2... Nc6 {[%clk 0:02:59.9]} 3. Bb5 {[%clk 0:03:00.8]} 3... a6 {[%clk 0:02:59.9]}
4. Ba4 {[%clk 0:03:00.6]} 4... Nf6 {[%clk 0:03:00.2]} 5. O-O {[%clk 0:03:00.7]}
5... Be7 {[%clk 0:03:00.6]} 6. Re1 {[%clk 0:03:00.2]} 6... b5 {[%clk 0:03:01.2]}
7. Bb3 {[%clk 0:03:00]} 7... O-O {[%clk 0:03:01.9]} 8. h3 {[%clk 0:02:59.7]}
8... d5 {[%clk 0:02:59.7]} 9. exd5 {[%clk 0:02:57.3]} 9... Nxd5 {[%clk
0:03:00.6]} 10. Nxe5 {[%clk 0:02:52.5]} 10... Nd4 {[%clk 0:03:01]} 11. Nf3
{[%clk 0:02:40.6]} 11... Nxb3 {[%clk 0:02:56.9]} 12. axb3 {[%clk 0:02:41.5]}
12... c5 {[%clk 0:02:55.4]} 13. d4 {[%clk 0:02:37.9]} 13... Bb7 {[%clk
0:02:53.9]} 14. Nc3 {[%clk 0:02:20.9]} 14... Nb4 {[%clk 0:02:50.8]} 15. Ne4
{[%clk 0:01:49.3]} 15... cxd4 {[%clk 0:02:26.8]} 16. Nxd4 {[%clk 0:01:38.6]}
16... Rc8 {[%clk 0:02:05.3]} 17. c3 {[%clk 0:01:36.3]} 17... Nd5 {[%clk
0:02:04.4]} 18. Nf5 {[%clk 0:01:23.5]} 18... Bf6 {[%clk 0:01:37]} 19. Ned6
{[%clk 0:01:18.7]} 19... Rc7 {[%clk 0:01:23.8]} 20. Nxb7 {[%clk 0:01:18.5]}
20... Rxb7 {[%clk 0:01:24.7]} 21. Rxa6 {[%clk 0:01:18.2]} 21... g6 {[%clk
0:01:06.5]} 22. Rd6 {[%clk 0:01:11.8]} 22... Rd7 {[%clk 0:00:12.9]} 23. Rxd7
{[%clk 0:00:50.6]} 23... Qxd7 {[%clk 0:00:11.8]} 24. Ne3 {[%clk 0:00:45.2]}
24... Rd8 {[%clk 0:00:10.5]} 25. Nxd5 {[%clk 0:00:42]} 25... Qxd5 {[%clk
0:00:11.4]} 26. Re8+ {[%clk 0:00:38.2]} 26... Kg7 {[%clk 0:00:11.3]} 27. Rxd8
{[%clk 0:00:37.6]} 27... Qxd8 {[%clk 0:00:11.3]} 28. Qxd8 {[%clk 0:00:37]} 28...
Bxd8 {[%clk 0:00:12.2]} 29. Kf1 {[%clk 0:00:36.6]} 29... Kf6 {[%clk 0:00:11.8]}
30. Ke2 {[%clk 0:00:37.1]} 30... Ke5 {[%clk 0:00:12.7]} 31. Kd3 {[%clk
0:00:37.5]} 31... Kd5 {[%clk 0:00:13]} 32. c4+ {[%clk 0:00:37.3]} 32... Kc6
{[%clk 0:00:13.9]} 33. Be3 {[%clk 0:00:35.7]} 33... Bf6 {[%clk 0:00:13.5]} 34.
Bd4 {[%clk 0:00:36.2]} 34... Be7 {[%clk 0:00:13.6]} 35. Ke4 {[%clk 0:00:33.3]}
35... Bd6 {[%clk 0:00:12.6]} 36. g4 {[%clk 0:00:31]} 36... Bc7 {[%clk
0:00:03.5]} 37. f4 {[%clk 0:00:25.4]} 37... Bd6 {[%clk 0:00:03.6]} 38. f5 {[%clk
0:00:25.5]} 38... Be7 {[%clk 0:00:03.5]} 39. Ke5 {[%clk 0:00:21.3]} 39... Bf8
{[%clk 0:00:01.6]} 40. Kf6 {[%clk 0:00:20.1]} 40... gxf5 {[%clk 0:00:01.9]} 41.
gxf5 {[%clk 0:00:19]} 41... Bc5 {[%clk 0:00:02.8]} 42. Bxc5 {[%clk 0:00:18.2]}
42... Kxc5 {[%clk 0:00:03.7]} 43. cxb5 {[%clk 0:00:17.9]} 43... Kxb5 {[%clk
0:00:04.6]} 44. Kxf7 {[%clk 0:00:18.3]} 44... Kc5 {[%clk 0:00:05.5]} 45. Kg7
{[%clk 0:00:18.4]} 45... Kd5 {[%clk 0:00:06.4]} 46. f6 {[%clk 0:00:19]} 1-0

[Event "*** Titled Tuesday Blitz"]
[Site "Chess.com"]
[Date "2021.03.02"]
[Round "9"]
[White "AlexeiShirov"]
[Black "FLamps8"]
[Result "1-0"]
[WhiteElo "2824"]
[BlackElo "2661"]
[TimeControl "180+1"]
[EndTime "11:47:39 PST"]
[Termination "AlexeiShirov won on time"]

1. e4 {[%clk 0:02:47.6]} 1... c6 {[%clk 0:02:59.4]} 2. d4 {[%clk 0:02:46.4]}
2... d5 {[%clk 0:03:00.3]} 3. e5 {[%clk 0:02:46.5]} 3... Bf5 {[%clk 0:03:00]} 4.
Nf3 {[%clk 0:02:46.5]} 4... e6 {[%clk 0:03:00.4]} 5. Be2 {[%clk 0:02:46.6]} 5...
Nd7 {[%clk 0:03:00.4]} 6. O-O {[%clk 0:02:45.9]} 6... Ne7 {[%clk 0:03:00.9]} 7.
Nh4 {[%clk 0:02:45.8]} 7... Bg6 {[%clk 0:02:54.3]} 8. Nd2 {[%clk 0:02:43.6]}
8... Nf5 {[%clk 0:02:53.6]} 9. Nxg6 {[%clk 0:02:42]} 9... hxg6 {[%clk
0:02:54.5]} 10. Nf3 {[%clk 0:02:41.4]} 10... Be7 {[%clk 0:02:40.6]} 11. g3
{[%clk 0:02:34.3]} 11... c5 {[%clk 0:02:29.1]} 12. c3 {[%clk 0:02:33.6]} 12...
Qb6 {[%clk 0:02:28.7]} 13. Kg2 {[%clk 0:02:30.7]} 13... O-O {[%clk 0:02:14.1]}
14. h4 {[%clk 0:02:27.2]} 14... Rac8 {[%clk 0:02:10.4]} 15. Rh1 {[%clk
0:02:24.2]} 15... cxd4 {[%clk 0:01:42.8]} 16. cxd4 {[%clk 0:02:23]} 16... Nb8
{[%clk 0:01:43.2]} 17. g4 {[%clk 0:02:21]} 17... Nh6 {[%clk 0:01:42.7]} 18. Ne1
{[%clk 0:02:11.2]} 18... Nc6 {[%clk 0:01:36.7]} 19. Be3 {[%clk 0:02:10.1]} 19...
Qxb2 {[%clk 0:01:15]} 20. h5 {[%clk 0:02:01.8]} 20... g5 {[%clk 0:01:08.9]} 21.
Rb1 {[%clk 0:02:00.7]} 21... Qxa2 {[%clk 0:01:08.1]} 22. Rxb7 {[%clk 0:02:00]}
22... Rb8 {[%clk 0:01:08.5]} 23. Rxe7 {[%clk 0:01:58.2]} 23... Nxe7 {[%clk
0:01:06]} 24. Bxg5 {[%clk 0:01:57.8]} 24... Rb2 {[%clk 0:00:59.8]} 25. Bxe7
{[%clk 0:01:26.9]} 25... Rxe2 {[%clk 0:00:56.7]} 26. Bxf8 {[%clk 0:01:25.1]}
26... Rxf2+ {[%clk 0:00:50.8]} 27. Kg3 {[%clk 0:01:23.9]} 27... Kxf8 {[%clk
0:00:32.2]} 28. Qc1 {[%clk 0:01:12]} 28... Kg8 {[%clk 0:00:23.9]} 29. Rg1 {[%clk
0:01:03.9]} 29... Qe2 {[%clk 0:00:21.4]} 30. Qg5 {[%clk 0:00:54.9]} 30... Rh2
{[%clk 0:00:14.4]} 31. Ng2 {[%clk 0:00:45.7]} 31... Rxg2+ {[%clk 0:00:03.7]} 32.
Rxg2 {[%clk 0:00:44.8]} 32... Qd3+ {[%clk 0:00:03.8]} 33. Kh2 {[%clk 0:00:28.4]}
33... Qxd4 {[%clk 0:00:04.7]} 34. Kh3 {[%clk 0:00:28.2]} 34... Qd3+ {[%clk
0:00:04.4]} 35. Rg3 {[%clk 0:00:26.3]} 35... Qf1+ {[%clk 0:00:04.3]} 36. Kh2
{[%clk 0:00:25.9]} 36... Qe2+ {[%clk 0:00:02.8]} 37. Rg2 {[%clk 0:00:25]} 37...
Qe4 {[%clk 0:00:03.4]} 38. Qh4 {[%clk 0:00:18.3]} 38... Qxe5+ {[%clk 0:00:02.9]}
39. Kh3 {[%clk 0:00:18.1]} 39... Qe3+ {[%clk 0:00:03]} 40. Qg3 {[%clk
0:00:17.8]} 40... Qe4 {[%clk 0:00:02.2]} 41. Qb8+ {[%clk 0:00:16.3]} 41... Kh7
{[%clk 0:00:02.2]} 42. Qg3 {[%clk 0:00:15.5]} 42... d4 {[%clk 0:00:02.7]} 43.
Rf2 {[%clk 0:00:14.9]} 43... d3 {[%clk 0:00:02.6]} 44. Qf3 {[%clk 0:00:13.9]}
1-0